bitfinex-derivatives/quotes_BNBF0:USTF0_20250331
["timestamp","ask_amount","ask_price","bid_price","bid_amount"]
[1743458298169,0.28710384,606.74,606.16,0.32994588]
[1743458298366,0.30316488,606.73,606.16,0.32994588]
[1743458298772,0.30316488,606.72,606.16,0.32994588]
[1743458300371,0.5902699,606.71,606.16,0.32994588]
[1743458300670,0.30316488,606.7,606.16,0.32994588]
[1743458303174,0.30316488,607.37,606.16,0.32994588]
[1743458303375,0.63245887,607.36,606.16,0.32994588]
[1743458303581,0.28701149,606.69,606.16,0.32994588]
[1743458303770,2.51031067,607.22,606.16,0.32994588]
[1743458303771,0.30316488,606.68,606.16,0.32994588]
[1743458303975,0.30316488,606.67,606.16,0.32994588]
[1743458304173,0.28702688,606.69,606.16,0.32994588]
[1743458304368,0.30316488,606.68,606.16,0.32994588]
[1743458304571,0.30316278,606.67,606.16,0.32994588]
[1743458304773,0.30316278,606.66,606.16,0.32994588]
[1743458304969,0.30316278,606.68,606.16,0.32994588]
[1743458305173,0.30316278,606.67,606.16,0.32994588]
[1743458305674,1.50102688,606.69,606.16,0.32994588]
[1743458305675,0.30316278,606.66,606.16,0.32994588]
[1743458305870,0.30316278,606.68,606.16,0.32994588]
[1743458306074,0.30316278,606.67,606.16,0.32994588]
[1743458306269,0.30316278,606.68,606.16,0.32994588]
[1743458306471,0.30316278,606.67,606.16,0.32994588]
[1743458306669,0.30316278,606.66,606.16,0.32994588]
[1743458306871,0.30316278,606.68,606.16,0.32994588]
[1743458307073,0.30316278,606.67,606.16,0.32994588]
[1743458307276,0.30316278,606.66,606.16,0.32994588]
[1743458307472,0.30316278,606.68,606.16,0.32994588]
[1743458307672,1.5010766,606.69,606.16,0.32994588]
[1743458307877,0.30316688,606.68,606.16,0.32994588]
[1743458313676,1.5010991,606.69,606.16,0.32994588]
[1743458313973,0.30320568,606.68,606.16,0.32994588]
[1743458314172,1.5010991,606.69,606.16,0.32994588]
[1743458314379,0.30321525,606.68,606.16,0.32994588]
[1743458315479,0.28717373,606.67,606.16,0.32994588]
[1743458315680,0.30321525,606.66,606.16,0.32994588]
[1743458316477,0.30321525,606.66,604.96,1.90083792]
[1743458316682,0.30321525,606.66,604.98,0.33058944]
[1743458316877,0.30321525,606.66,604.99,1.90083792]
[1743458317083,0.30321525,606.66,605.01,0.33057304]
[1743458317278,0.30321525,606.66,605.13,2.51622091]
[1743458317482,0.30321525,606.66,605.15,0.33049657]
[1743458317681,0.30321525,606.66,605.16,1.90083792]
[1743458317880,0.30321525,606.66,605.18,0.33048018]
[1743458318082,0.30321525,606.66,605.19,1.90083792]
[1743458318384,0.30321525,606.66,605.21,0.3304638]
[1743458318683,0.30321525,606.66,605.21,2.23130172]
[1743458318883,0.30321525,606.66,605.22,2.72507981]
[1743458319185,0.30321525,606.66,605.24,0.33044742]
[1743458320782,0.30321525,606.66,605.25,1.90083792]
[1743458320977,0.30321525,606.66,605.26,1.90083792]
[1743458321177,0.30321525,606.66,605.25,1.90083792]
[1743458321383,0.30321525,606.66,605.26,1.90083792]
[1743458321582,0.30321525,606.66,605.25,1.90083792]
[1743458321785,0.30321525,606.66,605.26,2.72507981]
[1743458321984,0.30321525,606.66,605.26,4.62591773]
[1743458322184,0.30321525,606.66,605.27,1.90083792]
[1743458322984,0.30321525,606.66,605.26,2.72507981]
[1743458323289,0.30321525,606.66,604.83,2.51622091]
[1743458323290,0.30321525,606.66,605.29,0.33042012]
[1743458324188,0.30321525,606.68,605.29,0.33042012]
[1743458324388,0.30321525,606.67,605.29,0.33042012]
[1743458324582,0.28718084,606.65,605.29,0.33042012]
[1743458324784,0.30321525,606.64,605.29,0.33042012]
[1743458325590,0.30327598,606.63,605.29,0.33042012]
[1743458325788,0.30327598,606.64,605.3,1.90083792]
[1743458325992,0.30327598,606.63,605.31,1.90083792]
[1743458326294,0.30327598,606.62,605.33,0.33039829]
[1743458326492,0.30327598,606.61,605.34,1.90083792]
[1743458326696,0.30327598,606.64,605.36,0.33038192]
[1743458326893,0.30327598,606.63,605.36,0.33038192]
[1743458327089,0.30327598,606.62,605.36,0.33038192]
[1743458327291,0.30327598,606.61,605.36,0.33038192]
[1743458327494,0.30327598,606.6,605.36,0.33038192]
[1743458327691,0.30327598,606.59,605.36,0.33038192]
[1743458327891,0.30327598,606.58,605.36,0.33038192]
[1743458328190,0.30327598,606.57,605.36,0.33038192]
[1743458328388,0.30327598,606.64,605.36,0.33038192]
[1743458328589,0.28718084,606.65,605.36,0.33038192]
[1743458328590,0.30327598,606.56,605.36,0.33038192]
[1743458328794,0.30327598,606.55,605.36,0.33038192]
[1743458328991,0.30327598,606.64,605.36,0.33038192]
[1743458329198,0.30327598,606.63,605.36,0.33038192]
[1743458329397,0.30327598,606.62,605.36,0.33038192]
[1743458329597,0.30327598,606.64,605.36,0.33038192]
[1743458329797,0.28718084,606.65,605.36,0.33038192]
[1743458329798,0.30327598,606.63,605.36,0.33038192]
[1743458329995,0.30327598,606.62,605.36,0.33038192]
[1743458330195,0.30327598,606.61,605.36,0.33038192]
[1743458330492,0.30327598,606.6,605.36,0.33038192]
[1743458330695,0.30327598,606.59,605.36,0.33038192]
[1743458330898,0.30327598,606.64,605.36,0.33038192]
[1743458331099,0.30327598,606.63,605.36,0.33038192]
[1743458331399,0.30327598,606.62,605.36,0.33038192]
[1743458331598,0.30327598,606.61,605.36,0.33038192]
[1743458331792,0.30327598,606.6,605.36,0.33038192]
[1743458331998,0.30334716,606.59,605.36,0.33038192]
[1743458332198,0.30334716,606.64,605.36,0.33038192]
[1743458332499,0.30334716,606.63,605.36,0.33038192]
[1743458332695,0.30334716,606.62,605.36,0.33038192]
[1743458332895,0.30334716,606.61,605.36,0.33038192]
[1743458333097,0.30334716,606.6,605.36,0.33038192]
[1743458333294,0.30334716,606.59,605.36,0.33038192]
[1743458333599,0.28723062,606.6,605.36,0.33038192]
[1743458333600,0.30334915,606.58,605.36,0.33038192]
[1743458333794,0.30334915,606.59,605.36,0.33038192]
[1743458334002,0.30334915,606.58,605.36,0.33038192]
[1743458334300,0.30334915,606.57,605.36,0.33038192]
[1743458334496,0.30334915,606.59,605.36,0.33038192]
[1743458334697,0.30334915,606.58,605.36,0.33038192]
[1743458334894,0.30334915,606.59,605.36,0.33038192]
[1743458335098,0.30334915,606.58,605.36,0.33038192]
[1743458335398,0.30334915,606.57,605.36,0.33038192]
[1743458335595,0.30334915,606.56,605.36,0.33038192]
[1743458335800,0.30334915,606.55,605.36,0.33038192]
[1743458336100,0.30334915,606.54,605.36,0.33038192]
[1743458336301,0.30334915,606.59,605.36,0.33038192]
[1743458336495,0.30334915,606.58,605.36,0.33038192]
[1743458336699,0.30334915,606.59,605.36,0.33038192]
[1743458339204,0.30334915,607.34,605.36,0.33038192]
[1743458339501,0.28731243,606.58,605.36,0.33038192]
[1743458339701,0.30334915,606.57,605.36,0.33038192]
[1743458339902,0.30334915,607.31,605.36,0.33038192]
[1743458340202,0.32933195,607.29,605.36,0.33038192]
[1743458340401,0.30331027,607.28,605.36,0.33038192]
[1743458340601,0.32934821,607.26,605.36,0.33038192]
[1743458340802,0.30331027,607.25,605.36,0.33038192]
[1743458341003,0.32936449,607.23,605.36,0.33038192]
[1743458341304,0.30331027,607.22,605.36,0.33038192]
[1743458341502,0.32938076,607.2,605.36,0.33038192]
[1743458341702,0.30331027,607.19,605.36,0.33038192]
[1743458341904,0.32939703,607.17,605.36,0.33038192]
[1743458342104,0.30331027,607.16,605.36,0.33038192]
[1743458342501,0.32941331,607.14,605.36,0.33038192]
[1743458342699,0.30330842,607.13,605.36,0.33038192]
[1743458343610,0.32942416,607.12,605.36,0.33038192]
[1743458343908,0.30330842,607.11,605.36,0.33038192]
[1743458344205,0.32943501,607.1,605.36,0.33038192]
[1743458344405,0.30326807,607.09,605.36,0.33038192]
[1743458344607,0.63271394,607.08,605.36,0.33038192]
[1743458344808,0.63271936,607.07,605.36,0.33038192]
[1743458345002,0.63272479,607.06,605.36,0.33038192]
[1743458345205,0.30326807,607.05,605.36,0.33038192]
[1743458345401,0.30326807,607.04,605.36,0.33038192]
[1743458345604,0.30326807,607.03,605.36,0.33038192]
[1743458345802,0.30326807,607.02,605.36,0.33038192]
[1743458346007,0.63275193,607.01,605.36,0.33038192]
[1743458346303,0.63275736,607.0,605.36,0.33038192]
[1743458346503,0.63276278,606.99,605.36,0.33038192]
[1743458346700,0.30326807,606.98,605.36,0.33038192]
[1743458346900,0.30326807,606.97,605.36,0.33038192]
[1743458347101,0.30326807,606.96,605.36,0.33038192]
[1743458347403,0.32949471,606.99,605.36,0.33038192]
[1743458347708,0.30327996,606.98,605.36,0.33038192]
[1743458347907,0.30327996,606.97,605.36,0.33038192]
[1743458348208,0.30327996,606.96,605.36,0.33038192]
[1743458348407,0.30327996,606.95,605.36,0.33038192]
[1743458348704,0.28719269,606.96,605.36,0.33038192]
[1743458348705,0.30327996,606.94,605.36,0.33038192]
[1743458348906,0.30327996,606.93,605.36,0.33038192]
[1743458349102,0.30327996,606.92,605.36,0.33038192]
[1743458349305,0.30327996,606.91,605.36,0.33038192]
[1743458349508,0.30327996,606.95,605.36,0.33038192]
[1743458349701,0.30327996,606.94,605.36,0.33038192]
[1743458349905,0.30327996,606.93,605.36,0.33038192]
[1743458350102,0.30327996,606.92,605.36,0.33038192]
[1743458350307,0.30327996,606.91,605.36,0.33038192]
[1743458350504,0.30327996,606.9,605.36,0.33038192]
[1743458350703,0.30327996,606.89,605.36,0.33038192]
[1743458350903,0.30327996,606.95,605.36,0.33038192]
[1743458351107,0.30327996,606.94,605.36,0.33038192]
[1743458351304,0.30327996,606.93,605.36,0.33038192]
[1743458351508,0.30327996,606.92,605.36,0.33038192]
[1743458351710,0.30327996,606.91,605.36,0.33038192]
[1743458352010,0.30327996,606.9,605.36,0.33038192]
[1743458352309,0.30327996,606.89,605.36,0.33038192]
[1743458352511,0.30327996,606.88,605.36,0.33038192]
[1743458352905,0.30327996,606.87,605.36,0.33038192]
[1743458353105,0.30327996,606.86,605.36,0.33038192]
[1743458353312,0.30327996,606.85,605.36,0.33038192]
[1743458353513,0.30327996,606.84,605.36,0.33038192]
[1743458353711,0.30327996,606.83,605.36,0.33038192]
[1743458353912,0.30327996,606.82,605.36,0.33038192]
[1743458354213,0.30327996,606.81,605.36,0.33038192]
[1743458354412,0.30327996,606.8,605.36,0.33038192]
[1743458354611,0.30327996,606.79,605.36,0.33038192]
[1743458354807,0.30327996,606.78,605.36,0.33038192]
[1743458355011,0.30327996,606.77,605.36,0.33038192]
[1743458355208,0.30327996,606.76,605.36,0.33038192]
[1743458355404,0.30327996,606.75,605.36,0.33038192]
[1743458355609,0.30327996,606.74,605.36,0.33038192]
[1743458355813,0.30328043,606.73,605.36,0.33038192]
[1743458356111,0.30328043,606.72,605.36,0.33038192]
[1743458356317,0.30328043,606.71,605.36,0.33038192]
[1743458356612,0.30328043,606.7,605.36,0.33038192]
[1743458356811,0.30328043,606.8,605.36,0.33038192]
[1743458357007,0.30328043,606.79,605.36,0.33038192]
[1743458357212,0.30328043,606.78,605.36,0.33038192]
[1743458357513,0.30328043,606.77,605.36,0.33038192]
[1743458357715,0.30328043,606.76,605.36,0.33038192]
[1743458358016,0.30328043,606.75,605.36,0.33038192]
[1743458358209,0.30328043,606.74,605.37,1.90083792]
[1743458358513,0.30328043,606.73,605.39,0.33036554]
[1743458358707,0.30328043,606.72,605.39,0.33036554]
[1743458358914,0.30328043,606.71,605.39,0.33036554]
[1743458359115,0.30328043,606.7,605.39,0.33036554]
[1743458359321,0.2871453,606.78,605.39,0.33036554]
[1743458359322,0.30328043,606.69,605.39,0.33036554]
[1743458359716,0.30328043,606.68,605.39,0.33036554]
[1743458359918,0.30328043,606.67,605.39,0.33036554]
[1743458360115,0.30328043,606.66,605.39,0.33036554]
[1743458360320,0.30328043,606.65,605.39,0.33036554]
[1743458360921,0.30328043,606.64,605.39,0.33036554]
[1743458361222,0.30328043,606.63,605.39,0.33036554]
[1743458361421,0.30328043,606.65,605.4,1.90083792]
[1743458361621,0.30328043,606.64,605.42,0.33034917]
[1743458361822,0.30328043,606.65,605.42,0.33034917]
[1743458362016,0.30328043,606.64,605.42,0.33034917]
[1743458362215,0.30328043,606.65,605.42,0.33034917]
[1743458362422,0.30328043,606.64,605.42,0.33034917]
[1743458362622,0.30328043,606.65,605.42,0.33034917]
[1743458362822,0.28715714,606.66,605.42,0.33034917]
[1743458362823,0.30328043,606.64,605.42,0.33034917]
[1743458363121,0.30328043,606.63,605.42,0.33034917]
[1743458363318,0.30328043,606.95,605.42,0.33034917]
[1743458363522,0.2871299,606.62,605.42,0.33034917]
[1743458363723,0.30328043,606.61,605.42,0.33034917]
[1743458364224,0.30328043,606.6,605.42,0.33034917]
[1743458366326,0.30328043,606.98,605.42,0.33034917]
[1743458366526,0.28718321,606.59,605.42,0.33034917]
[1743458366722,0.30328043,606.58,605.42,0.33034917]
[1743458367129,0.28722943,606.57,605.42,0.33034917]
[1743458367324,0.30328043,606.56,605.42,0.33034917]
[1743458369128,1.044,606.55,605.42,0.33034917]
[1743458369328,0.30328043,606.54,605.42,0.33034917]
[1743458369531,0.59051223,606.54,605.42,0.33034917]
[1743458369730,0.30328043,606.53,605.42,0.33034917]
[1743458370430,0.30328177,606.52,605.42,0.33034917]
[1743458370735,0.30328177,606.51,605.42,0.33034917]
[1743458371034,0.2872318,606.54,605.42,0.33034917]
[1743458371035,0.30328177,606.53,605.42,0.33034917]
[1743458371236,0.30328177,606.5,605.42,0.33034917]
[1743458371532,0.30328177,606.49,605.42,0.33034917]
[1743458372028,0.30328183,606.48,605.42,0.33034917]
[1743458372229,0.30328183,606.47,605.43,1.90083792]
[1743458372430,0.30328183,606.46,605.45,0.33033281]
[1743458372631,0.30328183,606.45,605.46,1.90083792]
[1743458372932,0.30328183,606.44,605.48,0.33031644]
[1743458373129,0.30328183,606.47,605.49,1.90083792]
[1743458373324,0.30328183,606.46,605.5,1.90083792]
[1743458373531,0.30328183,606.47,605.51,2.23113799]
[1743458373730,0.30328183,606.46,605.52,2.23113254]
[1743458373927,0.30328183,606.47,605.53,2.23112708]
[1743458374133,0.30328183,606.46,605.54,2.23112163]
[1743458374332,0.30328183,606.47,605.55,2.23111617]
[1743458374534,0.30328183,606.46,605.56,0.3302728]
[1743458374834,0.30328183,606.45,605.57,1.90083792]
[1743458375034,0.30328183,606.47,605.58,0.33026189]
[1743458375236,0.30328149,606.46,605.58,2.23109981]
[1743458375437,0.30328149,606.54,605.58,0.33026189]
[1743458375637,0.28714885,606.46,605.58,0.33026189]
[1743458375932,0.30328149,606.45,605.58,0.33026189]
[1743458376132,0.28715241,606.45,605.58,0.33026189]
[1743458376333,0.30328149,606.44,605.58,0.33026189]
[1743458378436,0.30328149,606.43,605.58,0.33026189]
[1743458378636,0.28718677,606.43,605.58,0.33026189]
[1743458378935,0.30328149,606.42,605.58,0.33026189]
[1743458381234,0.30328149,606.41,605.58,0.33026189]
[1743458381434,0.28720928,606.41,605.58,0.33026189]
[1743458384037,1.044,606.55,605.58,0.33026189]
[1743458384530,0.28720691,606.54,605.58,0.33026189]
[1743458390037,0.32949471,606.99,605.58,0.33026189]
[1743458390237,0.30327909,606.98,605.58,0.33026189]
[1743458390438,0.28718914,606.53,605.58,0.33026189]
[1743458390640,0.32949471,606.99,605.58,0.33026189]
[1743458390832,0.30328072,606.98,605.58,0.33026189]
[1743458391033,0.28719032,606.52,605.58,0.33026189]
[1743458391237,0.32949471,606.99,605.58,0.33026189]
[1743458391434,1.378,606.51,605.58,0.33026189]
[1743458391634,1.66518914,606.51,605.58,0.33026189]
[1743458393138,1.378,606.51,605.58,0.33026189]
[1743458393439,0.59050528,606.5,605.58,0.33026189]
[1743458393632,0.30327229,606.49,605.58,0.33026189]
[1743458395238,0.3032758,606.48,605.58,0.33026189]
[1743458395438,0.3032758,606.47,605.58,0.33026189]
[1743458395638,0.3032758,606.49,605.58,0.33026189]
[1743458395835,0.3032758,606.48,605.58,0.33026189]
[1743458396033,1.378,606.51,605.58,0.33026189]
[1743458396034,0.3032758,606.47,605.58,0.33026189]
[1743458396241,0.3032758,606.46,605.58,0.33026189]
[1743458396542,0.3032758,606.45,605.58,0.33026189]
[1743458396741,0.3032758,606.44,605.58,0.33026189]
[1743458397039,0.3032758,606.43,605.58,0.33026189]
[1743458397336,0.3032758,606.42,605.58,0.33026189]
[1743458397540,0.3032758,606.46,605.58,0.33026189]
[1743458397736,0.3032758,606.45,605.58,0.33026189]
[1743458397941,0.3032758,606.44,605.58,0.33026189]
[1743458398142,0.3032758,606.43,605.58,0.33026189]
[1743458398442,0.3032758,606.42,605.58,0.33026189]
[1743458398641,0.3032758,606.41,605.58,0.33026189]
[1743458398940,0.3032758,606.4,605.58,0.33026189]
[1743458399337,1.378,606.51,605.58,0.33026189]
[1743458399538,0.2871761,606.44,605.58,0.33026189]
[1743458404051,0.30329866,606.43,605.58,0.33026189]
[1743458405245,0.30329866,606.98,605.58,0.33026189]
[1743458405449,0.28724129,606.42,605.58,0.33026189]
[1743458405651,0.30329866,606.41,605.58,0.33026189]
[1743458405850,0.30329866,606.98,605.58,0.33026189]
[1743458406148,0.28717018,606.41,605.58,0.33026189]
[1743458406353,0.30329866,606.4,605.58,0.33026189]
[1743458406548,0.28716662,606.4,605.58,0.33026189]
[1743458406753,0.30329866,606.39,605.58,0.33026189]
[1743458407850,1.396,606.38,605.58,0.33026189]
[1743458408048,0.30329866,606.37,605.58,0.33026189]
[1743458408451,0.59052572,606.37,605.58,0.33026189]
[1743458408651,0.28722706,606.37,605.58,0.33026189]
[1743458409352,0.30330565,606.36,605.58,0.33026189]
[1743458409657,0.28722706,606.37,605.58,0.33026189]
[1743458411057,1.396,606.38,605.58,0.33026189]
[1743458426268,0.30328355,606.37,605.58,0.33026189]
[1743458427363,1.396,606.38,605.58,0.33026189]
[1743458427968,0.30328331,606.37,605.58,0.33026189]
[1743458429271,1.396,606.38,605.58,0.33026189]
[1743458431575,0.30327721,606.37,605.58,0.33026189]
[1743458432174,1.396,606.38,605.58,0.33026189]
[1743458453792,0.2872567,606.44,605.58,0.33026189]
[1743458456087,0.32949471,606.99,605.58,0.33026189]
[1743458456490,0.30327944,606.98,605.58,0.33026189]
[1743458456686,0.30327944,606.97,605.58,0.33026189]
[1743458456888,0.30327944,606.96,605.58,0.33026189]
[1743458457090,0.30327944,606.95,605.58,0.33026189]
[1743458457287,0.30327944,606.94,605.58,0.33026189]
[1743458457491,0.30327944,606.93,605.58,0.33026189]
[1743458457695,0.30327944,606.92,605.58,0.33026189]
[1743458457995,0.30327944,606.91,605.58,0.33026189]
[1743458458194,0.30327944,606.9,605.58,0.33026189]
[1743458458389,0.30327944,606.95,605.58,0.33026189]
[1743458458590,0.30327944,606.94,605.58,0.33026189]
[1743458458792,0.30327944,606.93,605.58,0.33026189]
[1743458458994,0.30327944,606.92,605.58,0.33026189]
[1743458459288,0.30327944,606.91,605.58,0.33026189]
[1743458459494,0.30327944,606.9,605.58,0.33026189]
[1743458459697,0.30327944,606.89,605.58,0.33026189]
[1743458459993,0.30327944,606.88,605.58,0.33026189]
[1743458460190,0.30327944,606.87,605.58,0.33026189]
[1743458460391,0.30327944,606.86,605.58,0.33026189]
[1743458460587,0.30327944,606.85,605.58,0.33026189]
[1743458460894,0.30327944,606.84,605.58,0.33026189]
[1743458461092,0.30327944,606.83,605.58,0.33026189]
[1743458461290,0.30327944,606.82,605.58,0.33026189]
[1743458461489,0.30327944,606.81,605.58,0.33026189]
[1743458461690,0.30327944,606.9,605.58,0.33026189]
[1743458461890,0.30327944,606.89,605.58,0.33026189]
[1743458462090,0.30327944,606.88,605.58,0.33026189]
[1743458462291,0.28714885,606.91,605.58,0.33026189]
[1743458462496,0.3032781,606.9,605.58,0.33026189]
[1743458462696,0.3032781,606.89,605.58,0.33026189]
[1743458462898,0.3032781,606.88,605.58,0.33026189]
[1743458463098,0.3032781,606.87,605.58,0.33026189]
[1743458463298,0.3032781,606.86,605.58,0.33026189]
[1743458463600,0.3032781,606.85,605.58,0.33026189]
[1743458463899,0.3032781,606.84,605.58,0.33026189]
[1743458464095,0.3032781,606.83,605.58,0.33026189]
[1743458464296,0.3032781,606.82,605.58,0.33026189]
[1743458464492,0.3032781,606.9,605.58,0.33026189]
[1743458464699,0.3032781,606.89,605.58,0.33026189]
[1743458464901,0.3032781,606.88,605.58,0.33026189]
[1743458465095,0.3032781,606.87,605.58,0.33026189]
[1743458465400,0.3032781,606.86,605.58,0.33026189]
[1743458465695,0.3032781,606.85,605.58,0.33026189]
[1743458465999,0.3032781,606.84,605.58,0.33026189]
[1743458466199,0.3032781,606.83,605.58,0.33026189]
[1743458466400,0.3032781,606.82,605.58,0.33026189]
[1743458466594,0.3032781,606.81,605.58,0.33026189]
[1743458466793,0.3032781,606.8,605.58,0.33026189]
[1743458466993,0.3032781,606.79,605.58,0.33026189]
[1743458467199,0.30344081,606.78,605.58,0.33026189]
[1743458467393,0.63305499,606.77,605.58,0.33026189]
[1743458467596,0.63306042,606.76,605.58,0.33026189]
[1743458467795,0.30344081,606.75,605.58,0.33026189]
[1743458467995,0.63307129,606.74,605.58,0.33026189]
[1743458468301,0.63307672,606.73,605.58,0.33026189]
[1743458468502,0.63308216,606.72,605.58,0.33026189]
[1743458468701,0.63308759,606.71,605.58,0.33026189]
[1743458468896,0.63309302,606.7,605.58,0.33026189]
[1743458469100,0.30344081,606.69,605.58,0.33026189]
[1743458471501,0.28733853,606.68,605.58,0.33026189]
[1743458471698,0.30344081,606.67,605.58,0.33026189]
[1743458474403,0.30344081,606.69,605.58,0.33026189]
[1743458474605,0.2873409,606.66,605.58,0.33026189]
[1743458474798,0.30344081,606.65,605.58,0.33026189]
[1743458475201,0.30342582,606.64,605.58,0.33026189]
[1743458475403,0.30342582,606.63,605.58,0.33026189]
[1743458475604,0.2873409,606.66,605.58,0.33026189]
[1743458475605,0.30342582,606.62,605.58,0.33026189]
[1743458475903,0.30342582,606.61,605.58,0.33026189]
[1743458476103,0.30342582,606.6,605.58,0.33026189]
[1743458476301,0.30342582,606.59,605.58,0.33026189]
[1743458476501,0.30342582,606.58,605.58,0.33026189]
[1743458476700,0.30342582,606.57,605.58,0.33026189]
[1743458476906,0.30342582,606.56,605.58,0.33026189]
[1743458477105,0.30342582,606.55,605.58,0.33026189]
[1743458477306,0.30342582,606.54,605.58,0.33026189]
[1743458477506,0.30342582,606.53,605.58,0.33026189]
[1743458477707,0.30342582,606.52,605.58,0.33026189]
[1743458477907,0.30342582,606.51,605.58,0.33026189]
[1743458478206,0.30342582,606.5,605.58,0.33026189]
[1743458478407,0.3034256,606.49,605.58,0.33026189]
[1743458478609,0.3034256,606.48,605.58,0.33026189]
[1743458478804,0.3034256,606.53,605.58,0.33026189]
[1743458479001,0.3034256,606.52,605.58,0.33026189]
[1743458479204,0.3034256,606.51,605.58,0.33026189]
[1743458479407,0.28733734,606.54,605.58,0.33026189]
[1743458479408,0.3034256,606.53,605.58,0.33026189]
[1743458479603,0.3034256,606.52,605.58,0.33026189]
[1743458479807,0.3034256,606.51,605.58,0.33026189]
[1743458480005,0.3034256,606.53,605.58,0.33026189]
[1743458480508,0.3034256,606.52,605.58,0.33026189]
[1743458480709,0.28732073,606.52,605.58,0.33026189]
[1743458480910,0.3034256,606.51,605.58,0.33026189]
[1743458483514,0.3034256,606.69,605.58,0.33026189]
[1743458483715,0.28735395,606.5,605.58,0.33026189]
[1743458483914,0.3034256,606.49,605.58,0.33026189]
[1743458484110,0.32965221,606.7,605.58,0.33026189]
[1743458484312,0.28729701,606.49,605.58,0.33026189]
[1743458484509,0.32965221,606.7,605.58,0.33026189]
[1743458485014,0.28729701,606.48,605.58,0.33026189]
[1743458485210,0.32965221,606.7,605.58,0.33026189]
[1743458485415,0.30338148,606.69,605.58,0.33026189]
[1743458485609,0.2872982,606.47,605.58,0.33026189]
[1743458485814,0.32965221,606.7,605.58,0.33026189]
[1743458486116,0.28731955,606.46,605.58,0.33026189]
[1743458486315,0.30337992,606.45,605.58,0.33026189]
[1743458486810,0.28734564,606.44,605.58,0.33026189]
[1743458487916,0.3033817,606.43,605.58,0.33026189]
[1743458489416,0.28738243,606.42,605.58,0.33026189]
[1743458490514,0.30338143,606.41,605.58,0.33026189]
[1743458492310,0.32965221,606.7,605.58,0.33026189]
[1743458492513,0.28737412,606.4,605.58,0.33026189]
[1743458492711,0.32965221,606.7,605.58,0.33026189]
[1743458492917,0.30338262,606.69,605.58,0.33026189]
[1743458493117,0.28734209,606.39,605.58,0.33026189]
[1743458493313,0.32965221,606.7,605.58,0.33026189]
[1743458493516,0.30338234,606.69,605.58,0.33026189]
[1743458493813,0.28733734,606.38,605.58,0.33026189]
[1743458494017,0.30338234,606.37,605.58,0.33026189]
[1743458494214,0.28733378,606.37,605.58,0.33026189]
[1743458494412,0.30338234,606.36,605.58,0.33026189]
[1743458495316,0.30338234,606.35,605.58,0.33026189]
[1743458495517,0.28733853,606.35,605.58,0.33026189]
[1743458495717,0.30338234,606.34,605.58,0.33026189]
[1743458498523,0.59070545,606.33,605.58,0.33026189]
[1743458498723,0.30338234,606.32,605.58,0.33026189]
[1743458498923,0.30338886,606.31,605.58,0.33026189]
[1743458499123,0.30338886,606.3,605.58,0.33026189]
[1743458499323,0.30338886,606.32,605.58,0.33026189]
[1743458499523,0.30338886,606.31,605.58,0.33026189]
[1743458499723,0.30338886,606.32,605.58,0.33026189]
[1743458500026,0.30338886,606.31,605.58,0.33026189]
[1743458500324,0.30338886,606.3,605.58,0.33026189]
[1743458500626,0.30339101,606.29,605.58,0.33026189]
[1743458500819,0.30339101,606.28,605.58,0.33026189]
[1743458501025,0.30339101,606.27,605.58,0.33026189]
[1743458501723,0.2873148,606.26,605.58,0.33026189]
[1743458502026,0.30339101,606.25,605.58,0.33026189]
[1743458503520,0.2873148,606.26,605.58,0.33026189]
[1743458504226,1.154,606.28,605.58,0.33026189]
[1743458504426,0.2873492,606.25,605.58,0.33026189]
[1743458505530,0.30344261,606.24,605.58,0.33026189]
[1743458507430,0.28740023,606.23,605.58,0.33026189]
[1743458507932,0.30344261,606.22,605.58,0.33026189]
[1743458509925,0.28740023,606.23,605.58,0.33026189]
[1743458510129,0.30343361,606.22,605.58,0.33026189]
[1743458510330,0.30343361,606.21,605.58,0.33026189]
[1743458510634,0.30343361,606.2,605.58,0.33026189]
[1743458513228,1.154,606.28,605.58,0.33026189]
[1743458513433,0.28737649,606.19,605.58,0.33026189]
[1743458513636,0.30345479,606.18,605.58,0.33026189]
[1743458514135,1.154,606.28,605.58,0.33026189]
[1743458514136,0.5908301,606.17,605.58,0.33026189]
[1743458514335,0.30345479,606.16,605.58,0.33026189]
[1743458515932,0.30345479,606.16,604.77,1.90528985]
[1743458516129,0.30345479,606.16,604.79,0.33069329]
[1743458519433,0.2874572,606.15,604.79,0.33069329]
[1743458519737,0.30345479,606.14,604.79,0.33069329]
[1743458522642,0.2874572,606.15,604.79,0.33069329]
[1743458522643,0.30345479,606.13,604.79,0.33069329]
[1743458523035,0.30345479,606.12,604.79,0.33069329]
[1743458523439,0.30345479,606.11,604.79,0.33069329]
[1743458523640,0.30345479,606.1,604.79,0.33069329]
[1743458523843,0.30345479,606.14,604.79,0.33069329]
[1743458524140,0.30345479,606.13,604.79,0.33069329]
[1743458524337,0.30345479,606.14,604.79,0.33069329]
[1743458525940,0.30345479,606.13,604.79,0.33069329]
[1743458526143,0.30345479,606.12,604.79,0.33069329]
[1743458526344,0.30345479,606.11,604.79,0.33069329]
[1743458526644,0.30345479,606.1,604.79,0.33069329]
[1743458526838,0.30345479,606.09,604.79,0.33069329]
[1743458527042,0.30345479,606.08,604.79,0.33069329]
[1743458527244,0.30345479,606.07,604.79,0.33069329]